Cogmind - Beta 13 @@@ ROGUE MODE // 2024.04.21 @ 15:29:55 Player: Exceptionally Mediocre Result: Destroyed by as-86676 with Assembled Heavy Rifle Performance ------------- Evolutions (0) 0 Regions Visited (2) 400 Robots Destroyed (30) 150 Value Destroyed (467) 467 Prototype IDs (0) 0 Alien Tech Used (0) 0 Bonus (0) 0 TOTAL SCORE: 1017 Bonus ------- None Cogmind --------- Core Integrity 0/250 Matter 218/300 Energy 158/160 System Corruption 0% Temperature Cool (5) Movement Walking (260) Ox2 Location -10/Mines Parts ------- > --- POWER (1) -------- Light Nuclear Core > --- PROPULSION (2) --- Aluminum Leg > --- UTILITY (2) ------ Large Storage Unit Light Armor Plating > --- WEAPON (2) ------- Light Assault Rifle Light Assault Rifle > --- INVENTORY (15) --- Wheel High-capacity Matter Pod (122) Structural Scanner Launcher Guidance Computer Core Shielding Light Armor Plating Light Armor Plating Medium Laser Mining Laser Peak State ------------ > --- POWER ------------ Light Nuclear Core > --- PROPULSION ------- Aluminum Leg Aluminum Leg > --- UTILITY ---------- Large Storage Unit Light Armor Plating > --- WEAPON ----------- Assault Rifle Light Assault Rifle > --- INVENTORY -------- Aluminum Leg High-capacity Matter Pod Structural Scanner Core Shielding Light Armor Plating Light Armor Plating Light Armor Plating Medium Laser Light Assault Rifle Mining Laser [Rating: 10] Favorites ----------- Power Light Ion Engine Engine Light Ion Engine Power Core Light Nuclear Core Propulsion Light Treads Treads Light Treads Leg Aluminum Leg Utility Large Storage Unit Device Structural Scanner Storage Large Storage Unit Protection Light Armor Plating Weapon Assault Rifle Energy Gun EM Pulse Gun Ballistic Gun Assault Rifle Special Weapon Mining Laser Build | -11 -10 -10 ------- Run | Yrd Mat Min Slots Evolved . | . . . Power . | . . . Propulsion . | . . . Utility . | . . . Weapon . | . . . Parts Attached 32 | 7 10 15 Power 6 | 1 2 3 Engine 5 | 1 2 2 Core 1 | . . 1 Reactor . | . . . Propulsion 7 | 2 . 5 Treads 4 | 2 . 2 Leg 3 | . . 3 Wheel . | . . . Hover . | . . . Flight . | . . . Utility 7 | 2 2 3 Device 2 | 1 1 . Storage 2 | 1 1 . Processor . | . . . Hackware . | . . . Protection 3 | . . 3 Artifact . | . . . Weapon 12 | 2 6 4 Energy Gun 5 | 1 4 . Energy Cannon . | . . . Ballistic Gun 6 | 1 2 3 Ballistic Cannon . | . . . Launcher . | . . . Special Weapon 1 | . . 1 Impact Weapon . | . . . Slashing Weapon . | . . . Piercing Weapon . | . . . Special Melee Weapon . | . . . Unidentified Prototypes . | . . . Parts Lost 16 | . 3 13 Power 4 | . 1 3 Propulsion 5 | . . 5 Utility 2 | . . 2 Weapon 5 | . 2 3 Highest Loss Streak 9 | . 3 9 To Critical Strikes . | . . . Average Slot Usage (%) 97 | . 99 86 Engine 12 | . 14 4 Core 1 | . . 9 Treads 23 | . 28 2 Leg 2 | . . 13 Device 11 | . 14 . Storage 14 | . 14 14 Protection 2 | . . 14 Energy Gun 5 | . 6 . Ballistic Gun 22 | . 21 27 Naked Turns . | . . . Heaviest Build 31 | 13 30 31 Greatest Support 40 | 40 40 20 Greatest Overweight (x) 10 | . . 10 Average Overweight (x) . | . . 2 Largest Inventory Capacity 15 | 8 15 15 Average Capacity 14 | 7 14 15 Most Carried 15 | 6 15 15 Average Carried 10 | 3 11 10 Final Capacity 15 | 8 15 15 Final Carried 15 | 6 15 9 Class Distribution -------------------- 90% | Mutant 9% | Scavenger-Mutant Dominant Class ---------------- Mutant | -10/Materials Scavenger-Mutant | -10/Mines Resources | -11 -10 -10 ----------- Run | Yrd Mat Min Matter Collected 977 | 327 435 215 Remotely . | . . . Salvage Created 980 | 139 589 252 Parts 61 | 10 47 4 Haulers Intercepted 2 | . 2 . Recyclers Shooed 1 | . . 1 Parts Field Recycled . | . . . Retrieved Matter . | . . . Parts Self-Destructed . | . . . Prevented . | . . . Kills | -11 -10 -10 ------- Run | Yrd Mat Min Combat Hostiles Destroyed 24 | . 14 10 Guns 24 | . 14 10 Classes Destroyed 10 | 2 6 2 Worker 2 | . 2 . Builder 5 | . 5 . Tunneler 2 | 2 . . Hauler 2 | . 2 . Recycler 1 | 1 . . Watcher 1 | . 1 . Swarmer 9 | . 9 . Grunt 6 | . 5 1 Demolisher 2 | . . 2 Assembled 7 | . . 7 Best Kill Streak 6 | 1 6 6 Combat Bots Only 6 | . 5 6 Max Kills in Single Turn 2 | 1 2 1 Gunslinging . | . . . Exploded . | . . . Melee . | . . . Uniques/NPCs Destroyed . | . . . Combat | -11 -10 -10 -------- Run | Yrd Mat Min Hostile Shots Fired 205 | . 76 129 Missed 53 | . 17 36 Damage Taken 1910 | . 579 1331 Core 263 | . 52 211 Absorbed by Shields . | . . . Core Remaining (%) 100 | 100 . . Volleys Fired 136 | 19 62 55 Largest 2 | 1 2 2 Hottest 90 | 20 90 40 Shots Fired 246 | 19 117 110 Gun 246 | 19 117 110 Cannon . | . . . Launcher . | . . . Special . | . . . Kinetic 205 | 19 76 110 Thermal 23 | . 23 . Explosive . | . . . Electromagnetic 18 | . 18 . Robot Hit Streak 8 | 2 8 7 Robot Miss Streak 12 | 4 12 6 Penetration Max . | . . . Secondary Targets 5 | . 1 4 Max Gunslinging Chain 1 | . 1 1 Shots Hit Robots 120 | 8 56 56 Core Hits 61 | 4 28 29 Critical Kills . | . . . Critical Parts Destroyed . | . . . Critical Strikes 2 | . 2 . Burn 2 | . 2 . Melee Attacks . | . . . Impact . | . . . Slashing . | . . . Piercing . | . . . Sneak Attacks . | . . . Combat Hostiles . | . . . Follow-up Attacks . | . . . Damage Inflicted 1606 | 112 851 643 Guns 1540 | 112 785 643 Cannons . | . . . Explosions 66 | . 66 . Melee . | . . . Ramming . | . . . Kinetic 1173 | 112 418 643 Thermal 294 | . 294 . Explosive . | . . . Electromagnetic 139 | . 139 . Impact . | . . . Slashing . | . . . Piercing . | . . . Highest Corruption . | . . . Average Corruption . | . . . Corruption Purged . | . . . Corruption Blocked . | . . . Overload Shots . | . . . Overflow Damage . | . . . Projectiles . | . . . Explosions . | . . . Melee . | . . . Knockbacks . | . . . Impact . | . . . Kinetic . | . . . Secondary . | . . . Self-Inflicted Damage 34 | . 34 . Shots 1 | . 1 . Rammed . | . . . Targets Rammed . | . . . Kicked . | . . . Crushed . | . . . Highest Temperature 153 | . 153 55 Average Temperature 34 | . 56 18 Received Heat Transfer 607 | . 162 445 Siege Activations . | . . . Robots Corrupted . | . . . Combat Hostiles . | . . . Parts Fried . | . . . Impact Corruptions . | . . . Robots Melted . | . . . Combat Hostiles . | . . . Parts Melted . | . . . Heat Transferred 1014 | . 1014 . Parts Sabotaged . | . . . Parts Stolen . | . . . Parts Stripped . | . . . Power Chain Reactions 1 | . 1 . Alert | -11 -10 -10 ------- Run | Yrd Mat Min Peak Influence 208 | 15 208 40 Initial 32 | . 9 32 Average 66 | 6 85 21 Maximum Alert Level 1 | . 1 . Low Security (%) 95 | 100 93 100 Level 1 4 | . 6 . Level 2 . | . . . Level 3 . | . . . Level 4 . | . . . Level 5 . | . . . High Security . | . . . Max Security . | . . . Squads Dispatched 1 | . 1 . Investigation 1 | . 1 . Extermination . | . . . Reinforcement . | . . . Assault . | . . . Garrison . | . . . Intercept . | . . . Searches Triggered . | . . . Construction Impeded . | . . . Haulers Reinforced . | . . . Active Scanning Responses . | . . . Cargo Convoy Interrupts . | . . . Stealth | -11 -10 -10 --------- Run | Yrd Mat Min Distress Signals 1 | . 1 . Communications Jammed . | . . . Distress Signals . | . . . Times Spotted 41 | . 25 16 Peak Tracking Total 6 | . 6 6 Tactical Retreats 3 | . . 3 Traps | -11 -10 -10 ------- Run | Yrd Mat Min Traps Triggered . | . . . Indirectly . | . . . Trap Hack Attempts . | . . . Triggered . | . . . Disarmed . | . . . Reprogrammed . | . . . Reused . | . . . Traps Extracted . | . . . Installed . | . . . Triggered . | . . . Machines | -11 -10 -10 ---------- Run | Yrd Mat Min Machines Disabled . | . . . Max in Single Turn . | . . . Machines Repaired . | . . . Machines Dismantled . | . . . Machines Sabotaged . | . . . Overloaded Fab Kills . | . . . Hacking | -11 -10 -10 --------- Run | Yrd Mat Min Machines Accessed 3 | . 3 . Terminals 3 | . 3 . Fabricators . | . . . Repair Stations . | . . . Recycling Units . | . . . Scanalyzers . | . . . Garrison Access . | . . . Total Hacks 6 | . 6 . Successful 2 | . 2 . Failed 4 | . 4 . Catastrophic . | . . . Database Lockouts . | . . . Manual 6 | . 6 . Terminals 6 | . 6 . Fabricators . | . . . Repair Stations . | . . . Recycling Units . | . . . Scanalyzers . | . . . Garrison Access . | . . . Terminal Hacks . | . . . Fabricator Hacks . | . . . Repair Station Hacks . | . . . Recycling Unit Hacks . | . . . Scanalyzer . | . . . Garrison Access Hacks . | . . . Unauthorized Hacks 2 | . 2 . Terminals 2 | . 2 . Botnet 2 | . 2 . Fabricators . | . . . Repair Stations . | . . . Recycling Units . | . . . Scanalyzers . | . . . Garrison Access . | . . . Data Cores Recovered . | . . . Used . | . . . Hacking Detections 1 | . 1 . Full Trace Events 1 | . 1 . Feedback Events . | . . . Feedback Blocked . | . . . Robot Schematics Acquired . | . . . Robots Built . | . . . Authchips . | . . . Time . | . . . Total Robot Build Rating . | . . . Part Schematics Acquired . | . . . Parts Built . | . . . Authchips . | . . . Time . | . . . Total Part Build Rating . | . . . Parts Repaired . | . . . Time . | . . . Parts Recycled . | . . . Recycled Matter . | . . . Retrieved Matter . | . . . Retrieved Components . | . . . Parts Scanalyzed . | . . . Part Schematics Acquired . | . . . Parts Damaged . | . . . Bothacking | -11 -10 -10 ------------ Run | Yrd Mat Min Used RIF Installer . | . . . Robots Hacked . | . . . Non-combat . | . . . Combat . | . . . Robot Hacks Applied . | . . . Relay Couplers Released . | . . . Fabnet Peak Effective % . | . . . Robots Rewired . | . . . Allies Hacked . | . . . Hacks Repelled . | . . . Allies | -11 -10 -10 -------- Run | Yrd Mat Min Total Allies . | . . . Largest Group . | . . . Highest-Rated Group . | . . . Highest-Rated Ally . | . . . Total Orders . | . . . Ally Attacks . | . . . Total Damage . | . . . Kills . | . . . Allies Corrupted . | . . . Allies Melted . | . . . Intel | -11 -10 -10 ------- Run | Yrd Mat Min Robot Analysis Total . | . . . Derelict Logs Recovered . | . . . Drone Launches . | . . . Drone Recoveries . | . . . Exploration | -11 -10 -10 ------------- Run | Yrd Mat Min Turns Passed 1574 | 195 1144 235 Spaces Moved 691 | 90 576 25 Core 4 | 2 . 2 Treads 664 | 88 576 . Legs 23 | . . 23 Wheels . | . . . Hover . | . . . Flight . | . . . Fastest Speed 50 | 50 160 190 Average Speed 162 | 157 160 242 Slowest Speed 550 | 160 160 550 Overloaded Moves . | . . . Propulsion Burnouts . | . . . Robots Hopped . | . . . Cave-ins Triggered . | . . . Exploration Rate (%) 28 | 5 74 7 Regions Visited 2 Branch Regions 1 Pre-discovered Areas . | . . . Known Exits Taken . | . . . Unknown Exits Taken 2 | 1 1 . Scrap Searched . | . . . Spaces Dug . | . . . Terrain Destroyed 2 | . 2 . Melee . | . . . Projectile . | . . . AOE 2 | . 2 . Terrain Rammed . | . . . Walls Destroyed . | . . . Machines Disabled . | . . . Actions | -11 -10 -10 --------- Run | Yrd Mat Min Total 907 | 121 686 100 Wait 3 | . 1 2 Move 689 | 89 575 25 Hop . | . . . Pick Up 32 | 6 23 3 Fast Attach 12 | 7 2 3 Attach 12 | . 3 9 Detach 1 | . 1 . Swap 8 | . 5 3 Drop 14 | . 14 . Fire 136 | 19 62 55 Melee . | . . . Ram . | . . . Kick . | . . . Crush . | . . . Escape Stasis . | . . . Rewire . | . . . Trap . | . . . Miscellaneous . | . . . Route ------- -11/Scrapyard -10/Materials (discovered 3 exits: [*Mat] / [*Min] / [Sub]) -10/Mines History --------- Turn | Location | Event 2 | -11/Scrapyard | Met Revision 17 21 | -11/Scrapyard | Discovered new exit (range 16) 196 | -11/Scrapyard | Entered Materials 303 | -10/Materials | Build established: Mutant 546 | -10/Materials | Lost 3 parts (1p2w) 685 | -10/Materials | Discovered new exit (range 8) 892 | -10/Materials | Discovered new exit (range 9) 1130 | -10/Materials | Discovered new exit (range 15) 1340 | -10/Materials | Entered Mines 1341 | -10/Mines | Assembled infested the area 1447 | -10/Mines | Lost 9 parts (3p3n1u2w) 1472 | -10/Mines | Core integrity fell below 50% 1514 | -10/Mines | Core integrity fell below 20% 1557 | -10/Mines | Lost 4 parts (2n1u1w) 1575 | -10/Mines | Destroyed by as-86676 with Assembled Heavy Rifle Last Messages --------------- corrupted. 01559_ U-05 Engineer lays Concrete. 01559_ Acquired 18 matter. 01560_ U-05 Engineer builds a Wall. 01565_ T-07 Excavator destroyed. 01567_ K-01 Serf collects debris. 01567_ as-52639 sneak attacks. 01567_ U-05 Engineer system corrupted by crushing effect. 01568_ U-05 Engineer system terminally corrupted. 01568_ K-01 Serf collects debris. 01569_ U-05 Engineer builds a Wall. 01571_ K-01 Serf collects debris. 01572_ K-01 Serf destroyed. 01572_ as-52639 destroyed. 01572_ Switching to secondary target: as-86676. 01573_ U-05 Engineer lays Concrete. 01574_ U-05 Engineer builds a Wall. 01574_ K-01 Serf collects debris. Map ----- +----------------------------------------------------+ | ???????????????????????????????????????? | | ???????????????????????????????????????? | | ???????????????????????????????????????? | | ???????????????????????????????????????? | | ???????????????????????????????????????? | | ???????????????????????????????????????? | | ???????????????????????????????????????? | | ???????????????????????????????????????? | | ???????????????????????????????????????? | | ???????????????????????????????????????? | | ???????????????????????????????????????? | | ???????????????????????????????????????? | | ???????????????????????????????????????? | | ???????????????????????????????????????? | | ???????????????????????????????????????? | | ?????????????????###???????????????????? | | ????????????????? ????????????????????? | | ???????#####????? #????????????????????? | | ??????###########a#????????????????????? | | ?????### ## # ##???????????????????? | | ??##### ## ##??????????????????? | | ?##### ##?????????????????? | | ?### ## #?????????????????? | | ?## % # ##????????????????? | | ?## % r ##???????????????? | | ?## ## k % @% % =!=!*%????????? | | ?## ### ##% # ! %=====!????????? | | ?##% ##### # ####k# % ###%#??????????? | | ?### ##??### ##?#%#? #??????????????? | | ?##### ?? #????#??? ##??????????????? | | ??#### ?######?????????#???????????????? | | ???????????????????????????????????????? | | ???????????????????????????????????????? | | ???????????????????????????????????????? | | ???????????????????????????????????????? | | ???????????????????????????????????????? | | ???????????????????????????????????????? | | ???????????????????????????????????????? | | ???????????????????????????????????????? | | ???????????????????????????????????????? | | ???????????????????????????????????????? | | ???????????????????????????????????????? | | ???????????????????????????????????????? | | ???????????????????????????????????????? | | ???????????????????????????????????????? | | ???????????????????????????????????????? | | ???????????????????????????????????????? | | ???????????????????????????????????????? | | ???????????????????????????????????????? | | ???????????????????????????????????????? | +----------------------------------------------------+ Best States ------------- Heat Dissipation 25 Energy Generation 14 Energy Capacity 250 Matter Stores 300 Matter Capacity 300 Sight Range 16 Terrain Scan Range 16 Terrain Scan Density 10 Armor Coverage 150 Evasion (%) 40 Recoil Reduction 2 Item Schematics ----------------- None Robot Schematics ------------------ None Fabricated ------------ Nothing Alien Tech Used ----------------- None Achievements -------------- None Challenges ------------ None Game ------ Seed ChromaticIntegrityDriver Manual? 0 Play Time 00:16:47 Cumulative 91.7 hours Start 2024.04.21 @ 15:14:50 End 2024.04.21 @ 15:29:55 Sessions 1 Manual Loads 0 Difficulty Rogue Special Mode None Game No. 109 Rogue 109 Adventurer 0 Explorer 0 Win Type - Total 0 Types 0/0/0/0/0/0/0/0/0 Lore% 26 Gallery% 50 Achievement% 39 Wizard Run 0 Options --------- Layout 1 ASCII 0 Keyboard 1 Movement Vi Keybinds 0 Fullscreen 1 Font 24/Smallcaps Map View 50x35 Zoom Use 0% Tactical HUD 1 Map Filters NONE Filters NONE Steam 1 RUN: ce3c5de3-4506-484f-9399-c1dc47af2454